bitfinex-derivatives/quotes_ETHF0:USTF0_20250620
["timestamp","ask_amount","ask_price","bid_price","bid_amount"]
[1750456831187,3.2078,2416.6,2416.5,2.21266]
[1750456831787,3.2078,2416.6,2416.5,2.90296]
[1750456833798,0.82744,2416.9,2416.8,0.82742]
[1750456834097,3.8922,2417.0,2416.8,0.82742]
[1750456834098,4.71959,2417.0,2416.9,0.82742]
[1750456834305,4.71959,2417.0,2416.9,6.11945904]
[1750456834497,1.51179,2417.0,2416.9,6.11945904]
[1750456834693,0.82737,2417.1,2417.0,0.82738]
[1750456834899,1.47193,2417.2,2417.1,0.82735]
[1750456835103,0.7119,2417.5,2417.2,0.82732]
[1750456835293,0.82728,2417.3,2417.2,0.82732]
[1750456840701,0.82741,2417.0,2416.9,0.8274]
[1750456840896,0.82745,2416.9,2416.8,0.82744]
[1750456841208,0.82745,2416.9,2416.8,33.09044]
[1750456843001,1.3413,2417.0,2416.8,33.09044]
[1750456843002,0.82741,2417.0,2416.9,0.82739]
[1750456843308,0.82723,2417.5,2417.4,0.82723]
[1750456843502,0.6748,2417.5,2417.4,38.37926904]
[1750456844005,0.82721,2417.5,2417.4,38.37926904]
[1750456844604,0.82721,2417.5,2417.4,32.26]
[1750456845808,0.82721,2417.5,2417.4,38.37928904]
[1750456848105,4.03501,2417.6,2417.5,0.82721]
[1750456848307,0.82721,2417.5,2417.4,38.37926904]
[1750456850612,0.82721,2417.5,2417.4,38.44860685]
[1750456851009,0.82721,2417.5,2417.4,38.43160685]
[1750456853802,0.82721,2417.5,2417.4,38.42860685]
[1750456855017,2.11611,2417.5,2417.4,32.30933781]
[1750456855908,2.11611,2417.5,2417.4,0.06933781]
[1750456856107,2.11611,2417.5,2417.4,25.61333781]
[1750456856411,2.11611,2417.5,2417.4,0.06933781]
[1750456858020,0.82742,2416.9,2416.8,55.17944]
[1750456858218,0.82742,2416.9,2416.8,33.06644]
[1750456859117,2.12792,2416.9,2416.8,33.06644]
[1750456860322,2.12792,2416.9,2416.8,32.239]
[1750456860525,0.82746,2416.8,2416.7,0.82747]
[1750456860822,0.82746,2416.8,2416.7,32.238]
[1750456861321,0.82753,2416.6,2416.5,0.82754]
[1750456861518,0.82753,2416.6,2416.5,26.36954]
[1750456861921,1.50443,2416.6,2416.5,26.36954]
[1750456863425,0.82756,2416.5,2416.4,12.81561904]
[1750456863615,0.82756,2416.5,2416.4,38.35861904]
[1750456864226,0.82756,2416.5,2416.4,6.696]
[1750456864524,0.82766,2416.2,2416.1,6.697]
[1750456864718,2.0691,2416.3,2415.9,26.37076]
[1750456865021,0.82777,2415.9,2415.8,6.11981904]
[1750456865222,0.82777,2415.9,2415.8,31.66281904]
[1750456865919,0.8278,2415.8,2415.7,9.9048]
[1750456866113,0.8278,2415.8,2415.7,30.83603904]
[1750456866320,2.06951,2415.8,2415.1,8.49983904]
[1750456866520,0.82796,2415.4,2415.3,5.29203904]
[1750456866821,0.82796,2415.4,2415.3,6.12000904]
[1750456867216,3.9096,2415.6,2415.2,6.697]
[1750456867423,3.9096,2415.6,2415.3,25.544]
[1750456867617,0.82801,2415.2,2415.1,8.49983904]
[1750456867819,0.82801,2415.2,2415.1,34.04383904]
[1750456868822,0.82801,2415.2,2415.1,28.7518]
[1750456869023,0.82801,2415.2,2415.1,28.7558]
[1750456869219,0.82801,2415.2,2415.1,3.2078]
[1750456869621,0.82801,2415.2,2415.1,4.03584]
[1750456869818,2.068,2415.5,2415.2,0.82799]
[1750456869819,0.828,2415.3,2415.2,0.82799]
[1750456870127,2.068,2415.5,2415.2,10.20253623]
[1750456870128,0.681,2415.5,2415.2,10.20253623]
[1750456870328,0.82796,2415.4,2415.3,0.82796]
[1750456870626,0.82796,2415.4,2415.2,35.74953623]
[1750456870627,0.82797,2415.3,2415.2,36.57752623]
[1750456871026,0.82796,2415.4,2415.3,0.82796]
[1750456871720,3.9096,2415.6,2415.2,42.44953623]
[1750456871928,0.82783,2415.8,2415.7,0.82782]
[1750456873918,3.2078,2416.0,2415.6,25.55]
[1750456874229,4.03555,2416.0,2415.9,0.82777]
[1750456874830,0.82777,2415.9,2415.8,25.55]
[1750456877331,0.82777,2415.9,2415.8,26.3778]
[1750456878530,0.82777,2415.9,2415.8,25.55]
[1750456878734,0.82777,2415.9,2415.8,26.3778]
[1750456878928,0.82777,2415.9,2415.8,27.7947]
[1750456879630,0.82783,2415.8,2415.7,0.82782]
[1750456879832,0.82783,2415.8,2415.7,33.07282]
[1750456880735,0.82783,2415.7,2415.6,1.53646]
[1750456880927,0.82783,2415.7,2415.6,33.78046]
[1750456881232,0.82781,2415.9,2415.8,0.89710781]
[1750456881430,0.82781,2415.9,2415.8,26.44710781]
[1750456882132,0.82781,2415.9,2415.8,27.75470781]
[1750456882334,0.82781,2415.9,2415.8,26.92693781]
[1750456884134,0.82781,2415.9,2415.8,25.61933781]
[1750456884630,0.82781,2415.9,2415.8,0.06933781]
[1750456884934,0.82781,2415.9,2415.8,32.31233781]
[1750456885531,0.82781,2415.9,2415.8,0.06933781]
[1750456885734,2.90051,2415.9,2415.8,0.06933781]
[1750456890333,1.49941,2415.9,2415.8,0.06933781]
[1750456894741,2.63541915,2415.9,2415.8,0.06933781]
[1750456899938,3.94651915,2415.9,2415.8,0.06933781]
[1750456900139,2.63541915,2415.9,2415.8,0.06933781]
[1750456901248,1.96381915,2415.9,2415.8,0.06933781]
[1750456901440,1.96377915,2415.9,2415.8,0.89713781]
[1750456901840,1.96377915,2415.9,2415.8,2.22313781]
[1750456903448,1.96377915,2415.9,2415.8,0.89713781]
[1750456903948,0.6537,2416.2,2416.1,0.8277]
[1750456904838,0.82762,2416.4,2416.3,0.82759]
[1750456905051,0.82762,2416.4,2416.3,4.25456686]
[1750456905757,0.82759,2416.5,2416.4,0.82757]
[1750456906061,0.82756,2416.5,2416.4,1.47027]
[1750456907660,4.68535,2416.6,2416.5,0.82756]
[1750456907863,4.68535,2416.6,2416.5,4.25453686]
[1750456908558,3.2078,2416.6,2416.5,4.25453686]
[1750456908857,3.2078,2416.9,2416.8,0.82741]
[1750456909060,0.82738,2417.1,2416.8,3.42697686]
[1750456909260,1.52954,2417.2,2417.1,0.82735]
[1750456909769,0.7022,2417.2,2417.1,0.82735]
[1750456910457,1.52952,2417.2,2417.1,0.82735]
[1750456910953,0.7022,2417.2,2417.1,0.82735]
[1750456911156,0.82728,2417.4,2417.3,0.82727]
[1750456911351,0.82728,2417.4,2417.3,4.25424686]
[1750456911554,3.2078,2417.6,2417.3,3.42697686]
[1750456911756,3.2078,2417.6,2417.5,3.42697686]
[1750456912154,4.03498,2417.6,2417.5,4.25419686]
[1750456912961,0.82703,2418.1,2417.6,2.06797]
[1750456913157,5.27511,2418.4,2417.9,7.39572233]
[1750456913361,0.82705,2418.0,2417.9,7.39572233]
[1750456913562,0.82705,2418.0,2417.9,7.39573233]
[1750456914564,0.827,2418.2,2417.9,6.56866233]
[1750456914752,0.827,2418.2,2417.9,7.91326233]
[1750456914957,0.827,2418.2,2418.0,0.82702]
[1750456915156,0.827,2418.2,2418.1,0.82701]
[1750456915356,3.38541,2418.5,2418.0,0.82703]
[1750456915556,4.70341,2418.5,2418.0,0.82703]
[1750456915757,0.827,2418.2,2418.1,0.82701]
[1750456916166,0.82698,2418.2,2418.1,0.82698]
[1750456916562,2.6362,2418.5,2418.1,0.82698]
[1750456916563,0.82697,2418.3,2418.2,0.82697]
[1750456917367,0.82693,2418.4,2418.3,0.82694]
[1750456917769,2.1451,2418.5,2418.4,0.82691]
[1750456918666,1.3182,2418.5,2418.2,7.28066233]
[1750456918862,0.82693,2418.4,2418.3,0.82691]
[1750456919065,3.38493,2418.9,2418.2,7.28066233]
[1750456919256,0.82686,2418.6,2418.5,0.82686]
[1750456919661,0.82683,2418.7,2418.6,0.82682]
[1750456920472,0.82687,2418.6,2418.5,0.82686]
[1750456920872,0.8269,2418.5,2418.4,0.82689]
[1750456921867,0.82698,2418.2,2418.1,10.71779]
[1750456922767,0.82698,2418.2,2418.1,3.2078]
[1750456922967,2.84498,2418.2,2418.1,3.2078]
[1750456924281,1.49538,2418.2,2418.1,10.60347233]
[1750456924477,0.8269,2418.5,2418.4,0.82688]
[1750456924769,1.48466,2418.6,2418.5,0.82688]
[1750456925177,0.82688,2418.5,2418.4,7.39554233]
[1750456925363,0.82691,2418.4,2418.3,7.50893]
[1750456925772,2.06723,2418.5,2418.1,4.10413781]
[1750456925979,0.82698,2418.2,2418.1,10.78613781]
[1750456926776,0.82698,2418.2,2418.1,10.7168]
[1750456927076,0.82698,2418.2,2418.1,9.8898]
[1750456927266,0.82698,2418.2,2418.1,3.2078]
[1750456927469,0.82698,2418.2,2418.1,4.03481]
[1750456927976,0.82698,2418.2,2418.1,3.27713781]
[1750456928170,0.82698,2418.2,2417.7,4.80303]
[1750456928171,2.06773,2417.9,2417.4,3.2078]
[1750456928378,0.82724,2417.5,2417.4,0.82723]
[1750456928767,0.6808,2417.7,2417.4,6.63800014]
[1750456928972,2.06743,2418.3,2417.5,27.57801]
[1750456929276,0.82707,2418.0,2417.9,0.82707]
[1750456929872,0.82711,2417.8,2417.7,3.2078]
[1750456930073,0.82715,2417.7,2417.6,7.50817]
[1750456930378,0.82718,2417.6,2417.5,7.39585233]
[1750456930575,0.82718,2417.6,2417.5,0.82719]
[1750456932884,0.82718,2417.6,2417.5,0.89652781]
[1750456933675,10.2758,2417.6,2416.9,3.2078]
[1750456933875,3.2078,2417.3,2416.9,3.2078]
[1750456934077,0.82739,2417.0,2416.9,4.0352]
[1750456934275,0.82736,2417.1,2416.9,4.0352]
[1750456934673,3.48455,2417.2,2417.0,0.82739]
[1750456934874,2.6572,2417.2,2416.9,3.2078]
[1750456935078,0.82741,2417.0,2416.9,0.82742]
[1750456935677,1.3504,2417.2,2417.1,0.82735]
[1750456935881,3.2078,2417.3,2417.2,0.82732]
[1750456936080,3.2078,2417.9,2417.8,0.82712]
[1750456936380,2.46986577,2418.6,2417.8,0.82712]
[1750456936381,3.2078,2418.3,2417.8,6.56866233]
[1750456936581,4.03476,2418.3,2418.2,0.82698]
[1750456937181,3.2078,2418.3,2418.2,0.82698]
[1750456937586,4.03475,2418.3,2418.2,0.82698]
[1750456938183,0.82695,2418.3,2418.2,0.82698]
[1750456938381,0.82695,2418.3,2418.1,0.89632781]
[1750456938888,0.82695,2418.3,2417.4,2.06811]
[1750456938889,0.82709,2417.9,2417.4,2.06811]
[1750456939078,0.82707,2418.0,2417.5,10.5373]
[1750456939274,3.2078,2417.9,2417.5,3.2078]
[1750456939587,0.82734,2417.2,2416.9,0.6679]
[1750456939785,0.82735,2417.1,2417.0,0.82737]
[1750456940082,0.82735,2417.2,2417.0,0.82737]
[1750456940281,0.8274,2417.0,2416.9,0.82741]
[1750456940488,1.53558,2417.1,2416.9,7.53241]
[1750456940675,0.82739,2417.0,2416.9,7.53241]
[1750456942889,0.82739,2417.0,2416.9,6.705]
[1750456943095,0.8275,2416.7,2416.6,0.82751]
[1750456943584,3.2078,2417.0,2416.6,5.0]
[1750456943785,3.2078,2417.5,2416.8,3.2078]
[1750456943990,0.82742,2416.9,2416.8,7.53344]
[1750456944484,6.57384,2417.2,2416.6,1.3404]
[1750456944686,0.8275,2416.7,2416.6,0.82751]
[1750456945385,0.6795,2417.1,2416.6,8.63748233]
[1750456945584,3.2078,2417.2,2416.9,6.56866233]
[1750456945891,3.2078,2417.2,2417.1,0.82735]
[1750456946885,3.2078,2417.2,2416.7,5.27651]
[1750456947089,0.82743,2416.9,2416.8,0.82746]
[1750456947493,0.82741,2417.0,2416.9,0.82742]
[1750456947878,0.82741,2417.0,2416.6,14.10317233]
[1750456947879,2.06849,2417.0,2416.6,14.10317233]
[1750456948080,0.82749,2416.7,2416.6,14.10317233]
[1750456949082,0.82742,2417.0,2416.9,0.82741]
[1750456950393,3.2078,2417.1,2417.0,0.82739]
[1750456950589,3.2078,2417.1,2416.9,6.56866233]
[1750456950889,0.82739,2417.0,2416.9,0.82741]
[1750456951589,4.03518,2417.1,2417.0,0.82739]
[1750456951790,3.2078,2417.1,2417.0,0.82739]
[1750456951991,0.8274,2417.0,2416.8,1.378]
[1750456952288,0.82751,2416.7,2416.6,0.82749]
[1750456952492,9.25196233,2417.6,2416.5,0.6538]
[1750456952493,3.2078,2417.5,2416.5,0.6538]
[1750456952696,0.82733,2417.2,2417.1,0.82732]
[1750456953189,3.2078,2417.9,2417.8,0.82709]
[1750456953387,3.2078,2417.9,2417.2,7.3758]
[1750456953590,1.3142,2417.8,2417.2,16.01273233]
[1750456953791,0.82716,2417.7,2417.6,0.82715]
[1750456953992,0.82714,2417.8,2417.7,0.82713]
[1750456954198,3.2078,2417.9,2417.8,0.82712]
[1750456954394,0.82724,2417.5,2417.4,0.82723]
[1750456954893,3.2078,2417.6,2417.2,0.6688]
[1750456955092,1.52336,2417.5,2417.4,0.82724]
[1750456956498,1.52334,2417.5,2417.4,0.82725]
[1750456957099,0.82725,2417.4,2417.3,7.53426]
[1750456958705,0.82732,2417.3,2417.2,0.82729]
[1750456958898,0.6961,2417.5,2417.4,0.82725]
[1750456959104,0.82729,2417.4,2417.3,0.82726]
[1750456959897,1.48128,2417.7,2417.6,0.82718]
[1750456960092,2.06783,2417.8,2417.3,0.82726]
[1750456960400,0.82724,2417.5,2417.4,7.53321]
[1750456961193,0.6909,2417.6,2417.5,0.82722]
[1750456961402,0.82719,2417.7,2417.6,0.82716]
[1750456962198,0.82722,2417.6,2417.5,0.82719]
[1750456962400,0.6737,2417.8,2417.2,29.16131]
[1750456962401,2.0679,2417.7,2417.2,1.344]
[1750456962701,0.82724,2417.5,2417.4,0.82721]
[1750456963603,2.06818,2417.4,2416.7,6.56866233]
[1750456963793,3.37293,2417.3,2416.7,2.06874]
[1750456963994,2.06844,2417.1,2416.5,11.98269]
[1750456964303,0.82744,2416.9,2416.8,0.82744]
[1750456965602,0.82739,2417.1,2417.0,0.82737]
[1750456965801,0.82745,2416.9,2416.8,7.53344]
[1750456966406,0.82741,2417.0,2416.9,0.8274]
[1750456967100,3.2078,2417.2,2416.5,3.2078]
[1750456967403,1.3666,2416.9,2416.8,0.82746]
[1750456967702,0.82753,2416.6,2416.5,6.707]
[1750456968801,0.82751,2416.7,2416.5,6.707]
[1750456969000,3.2078,2417.4,2416.6,2.06882]
[1750456969202,2.06822,2417.3,2416.6,13.24397233]
[1750456969404,3.38442,2417.3,2416.7,32.517]
[1750456969605,0.82741,2417.0,2416.9,0.8274]
[1750456971401,0.82746,2416.9,2416.8,0.82743]
[1750456971602,0.82753,2416.6,2416.5,0.06933781]
[1750456971909,0.82753,2416.6,2416.5,6.63800014]
[1750456972211,0.82753,2416.6,2416.5,0.06933781]
[1750456972801,0.82753,2416.6,2416.5,0.89689781]
[1750456973001,0.82753,2416.6,2416.5,0.06933781]
[1750456973206,0.82774,2416.0,2415.9,0.82774]
[1750456973410,3.2078,2416.3,2415.9,6.56866233]
[1750456973611,0.82777,2415.9,2415.8,3.2078]
[1750456973907,0.82776,2416.0,2415.9,0.82775]
[1750456974101,0.82787,2415.7,2415.6,0.82785]
[1750456974297,2.7464,2416.2,2415.5,14.80796233]
[1750456974298,1.3195,2416.2,2415.5,14.80796233]
[1750456974510,0.82773,2416.0,2415.9,7.39642233]
[1750456975010,0.82773,2416.0,2415.6,1.3155]
[1750456975011,0.82777,2415.9,2415.6,14.73516233]
[1750456975212,0.82777,2415.9,2415.8,0.82777]
[1750456975515,0.82783,2415.7,2415.6,15.56300233]
[1750456975703,2.06927,2416.1,2415.6,14.73516233]
[1750456975903,0.82779,2415.9,2415.8,0.82779]
[1750456976509,0.82781,2415.8,2415.7,0.82781]
[1750456977212,0.82778,2415.9,2415.8,0.82779]
[1750456977908,0.82781,2415.8,2415.7,0.82782]
[1750456978110,1.4269,2416.1,2415.8,0.82779]
[1750456978111,0.82779,2415.9,2415.8,0.82779]
[1750456978813,3.2078,2416.6,2415.7,2.06957]
[1750456979003,0.82771,2416.1,2416.0,7.39637233]
[1750456979404,2.0176,2416.5,2416.0,6.56866233]
[1750456979607,0.82767,2416.2,2416.1,0.82766]
[1750456979910,0.82777,2415.9,2415.8,7.67978]
[1750456980113,0.8278,2415.8,2415.7,6.56866233]
[1750456980313,0.82779,2415.9,2415.7,13.42066233]
[1750456980513,0.82779,2415.9,2415.8,0.82778]
[1750456980812,0.8278,2415.8,2415.7,14.24847233]
[1750456981302,0.82779,2415.9,2415.8,0.82777]
[1750456981613,0.82775,2416.0,2415.9,0.82774]
[1750456981812,0.82779,2415.9,2415.8,0.82777]
[1750456982312,0.82776,2416.0,2415.9,0.82774]
[1750456982706,3.2078,2416.3,2415.7,6.56866233]
[1750456982901,3.2078,2416.3,2415.6,6.852]
[1750456982902,0.82763,2416.3,2416.2,7.39629233]
[1750456983107,0.82763,2416.3,2416.2,6.56866233]
[1750456984018,0.8277,2416.1,2416.0,0.7084]
[1750456984310,0.82772,2416.1,2416.0,0.8277]
[1750456985001,5.96914,2416.3,2415.8,6.56866233]
[1750456985002,0.82776,2416.0,2415.9,0.82774]
[1750456986016,0.82779,2415.9,2415.8,0.82777]
[1750456986711,0.82782,2415.8,2415.7,0.8278]
[1750456987212,0.82787,2415.7,2415.6,0.82785]
[1750456987517,0.82789,2415.6,2415.5,0.82786]
[1750456989313,1.51153,2415.8,2415.7,0.82783]
[1750456989709,1.51229,2415.9,2415.8,0.8278]
[1750456989909,2.75392,2415.9,2415.5,8.1842]
[1750456990109,0.82786,2415.7,2415.6,0.82784]
[1750456990318,0.82783,2415.8,2415.7,0.82781]
[1750456990615,0.82786,2415.7,2415.6,0.82784]
[1750456991822,0.82782,2415.8,2415.7,0.8278]
[1750456992014,0.82782,2415.8,2415.5,3.2078]
[1750456992228,0.82787,2415.6,2415.5,12.28499]
[1750456992519,0.82786,2415.7,2415.6,0.82784]
[1750456994423,0.82789,2415.6,2415.5,0.82788]
[1750456996119,0.8279,2415.5,2415.4,13.42266233]
[1750456997322,0.8279,2415.5,2415.4,14.25060233]
[1750456997525,0.8279,2415.5,2415.4,6.854]
[1750456999011,0.8279,2415.5,2415.4,7.68194]
[1750456999817,0.8279,2415.5,2415.4,7.75127781]
[1750457002723,0.8279,2415.5,2415.4,6.92333781]
[1750457003124,0.8279,2415.5,2415.4,7.75127781]
[1750457003421,0.8279,2415.5,2415.4,6.92333781]
[1750457004322,0.8279,2415.5,2415.4,0.06933781]
[1750457005231,0.8279,2415.5,2414.9,3.2078]
[1750457005232,0.82807,2415.0,2414.9,4.03589]
[1750457007122,0.82807,2415.0,2414.9,3.2078]
[1750457007328,0.82811,2414.9,2414.8,8.36502]
[1750457007624,0.828,2415.3,2415.2,0.82796]
[1750457008224,0.828,2415.3,2415.2,1.51716]
[1750457009422,4.5888,2415.7,2415.2,2.7592]
[1750457009622,4.5888,2415.7,2415.2,8.8182]
[1750457009623,2.06968,2415.6,2415.2,8.8182]
[1750457009827,0.82797,2415.3,2415.2,8.34918]
[1750457010029,0.82797,2415.3,2415.2,1.51718]
[1750457010615,0.82796,2415.4,2415.3,0.82793]
[1750457010822,0.82793,2415.5,2415.4,0.8279]
[1750457011130,0.82793,2415.5,2415.4,0.89723781]
[1750457014134,0.8279,2415.6,2415.5,0.82787]
[1750457015629,3.2078,2415.7,2415.6,0.82786]
[1750457015834,4.03563,2415.7,2415.6,0.82786]
[1750457016523,0.82783,2415.7,2415.6,0.82786]
[1750457016929,0.8279,2415.6,2415.5,7.65987]
[1750457020228,0.8279,2415.6,2415.5,6.832]
[1750457020532,0.8279,2415.5,2415.4,0.06933781]
[1750457020834,0.8279,2415.5,2415.4,0.89726781]
[1750457021331,2.06967,2415.6,2414.8,5.27814]
[1750457021630,0.82807,2415.1,2415.0,0.82804]
[1750457022233,2.06993,2415.3,2414.8,5.2145]
[1750457022432,0.8281,2415.0,2414.9,0.82809]
[1750457023232,0.8281,2414.9,2414.8,6.04261]
[1750457023431,1.2929,2415.2,2414.8,5.2145]
[1750457023628,0.8281,2414.9,2414.8,4.71834]
[1750457024336,0.82821,2414.6,2414.5,3.2078]
[1750457024541,2.07044,2414.7,2414.2,3.2078]
[1750457024723,2.07044,2414.7,2414.1,4.118317]
[1750457024724,5.2785,2414.4,2413.9,8.9734438]
[1750457024926,0.82833,2414.3,2414.2,0.82834]
[1750457025139,3.2078,2414.4,2414.1,0.82835]
[1750457025140,0.82834,2414.2,2414.1,0.82835]
[1750457025337,0.82838,2414.1,2414.0,0.82839]
[1750457025533,3.2078,2414.4,2414.0,0.82839]
[1750457025839,4.5319,2414.4,2414.1,0.82835]
[1750457026132,0.82836,2414.2,2414.1,0.82835]
[1750457026331,0.82838,2414.1,2414.0,0.82839]
[1750457026637,0.82837,2414.2,2414.1,0.82838]
[1750457027137,6.60262,2414.4,2413.9,4.5663]
[1750457027330,0.82841,2414.1,2413.9,5.39472]
[1750457027634,0.82841,2414.1,2414.0,0.82841]
[1750457028138,6.60262,2414.4,2413.9,12.22773]
[1750457028139,0.82841,2414.0,2413.9,12.22773]
[1750457028435,6.60262,2414.4,2413.9,12.22773]
[1750457028436,4.5319,2414.4,2413.9,10.0408]
[1750457028638,4.5319,2414.4,2413.9,11.3441]
[1750457028837,0.82836,2414.2,2414.1,0.82837]
[1750457029233,0.82836,2414.2,2414.1,0.89770781]
[1750457029638,0.82832,2414.3,2414.2,0.82832]
[1750457029830,3.2078,2414.4,2414.3,0.82831]
[1750457030238,4.03608,2414.4,2414.3,0.82831]
[1750457030431,3.2078,2414.4,2414.3,0.82831]
[1750457032538,4.03592,2414.9,2414.8,0.82814]
[1750457033344,0.82816,2414.8,2414.7,0.82815]
[1750457033640,0.8282,2414.7,2414.6,0.82819]
[1750457033835,0.82817,2414.8,2414.7,0.82815]
[1750457034435,0.82819,2414.7,2414.6,0.8282]
[1750457034835,0.82816,2414.8,2414.7,0.82816]
[1750457035034,0.82819,2414.7,2414.6,0.82818]
[1750457035241,2.07039,2414.8,2414.2,3.2078]
[1750457035444,4.5406,2414.9,2414.2,3.2078]
[1750457035445,0.82822,2414.6,2414.5,0.8282]
[1750457035943,0.82818,2414.7,2414.6,0.82817]
[1750457036251,0.82824,2414.6,2414.5,0.82822]
[1750457036932,0.82819,2414.7,2414.6,0.82817]
[1750457038043,0.82824,2414.6,2414.5,0.82821]
[1750457040849,0.8282,2414.7,2414.6,0.82817]
[1750457042248,0.82816,2414.8,2414.7,0.82814]
[1750457042540,0.82817,2414.8,2414.7,0.82814]
[1750457045445,0.82817,2414.8,2414.7,0.89747781]
[1750457046144,3.2078,2414.9,2414.8,0.82814]
[1750457046353,0.82801,2415.2,2415.1,0.82799]
[1750457047046,0.82802,2415.2,2415.1,0.828]
[1750457047253,0.82809,2415.0,2414.9,0.8281]
[1750457047555,8.64793,2415.4,2414.8,10.1138]
[1750457047848,0.82806,2415.1,2415.0,0.82805]
[1750457048757,0.82807,2415.0,2414.9,0.82808]
[1750457048952,0.82807,2415.0,2414.9,4.25699347]
[1750457050652,0.8281,2414.9,2414.8,3.2078]
[1750457050952,0.8281,2414.9,2414.8,4.03594]
[1750457051549,0.8281,2414.9,2414.8,3.2078]
[1750457051747,0.82813,2414.8,2414.7,0.06933781]
[1750457053347,0.82837,2414.1,2414.0,4.0362]
[1750457054450,2.07085,2414.2,2413.7,3.2078]
[1750457054652,2.07087,2414.2,2413.7,4.03628]
[1750457054859,1.3763,2414.1,2413.7,4.03628]
[1750457055256,0.82847,2413.8,2413.7,4.03628]
[1750457055449,0.82847,2413.8,2413.7,3.2078]
[1750457055857,0.82847,2413.8,2413.7,4.03631]
[1750457056049,0.82847,2413.8,2413.7,3.2078]
[1750457056658,0.82845,2413.9,2413.8,0.82846]
[1750457058155,0.82847,2413.8,2413.7,2.12588]
[1750457059053,0.82846,2413.9,2413.7,2.12588]
[1750457059354,0.82847,2413.8,2413.7,2.12588]
[1750457059651,0.82847,2413.8,2413.7,2.19521781]
[1750457060155,0.82847,2413.8,2413.7,0.06933781]
[1750457060357,0.82846,2413.9,2413.8,0.82846]
[1750457060556,0.82841,2414.0,2413.7,3.27713781]
[1750457060759,0.82841,2414.0,2413.9,0.82841]
[1750457061355,0.82841,2414.0,2413.9,7.41488824]
[1750457061561,0.82841,2414.0,2413.9,8.80038824]
[1750457062348,3.2078,2414.6,2413.9,12.97197824]
[1750457062654,0.82823,2414.5,2414.4,7.41474824]
[1750457062860,4.03602,2414.6,2414.5,0.82823]
[1750457063566,4.036,2414.6,2414.5,0.82823]
[1750457064362,3.2078,2414.6,2414.5,0.82823]
[1750457064955,4.036,2414.6,2414.5,0.82823]
[1750457067363,3.2078,2414.6,2414.5,0.82823]
[1750457067564,4.036,2414.6,2414.5,0.82823]
[1750457067767,3.2078,2414.6,2414.5,0.82823]
[1750457068561,3.2078,2414.6,2414.5,2.17693]
[1750457069262,0.82818,2414.7,2414.6,0.8282]
[1750457069668,0.82815,2414.8,2414.7,0.82815]
[1750457069863,2.694,2415.0,2414.5,1.3487]
[1750457070170,0.82814,2414.8,2414.7,0.82815]
[1750457070669,0.82812,2414.9,2414.8,0.82811]
[1750457072860,0.82812,2414.9,2414.5,10.00576824]
[1750457072861,0.8282,2414.6,2414.4,0.6954]
[1750457073068,0.8282,2414.6,2414.5,0.82823]
[1750457073565,0.82814,2414.8,2414.7,0.82814]
[1750457074160,0.82813,2414.9,2414.8,0.82811]
[1750457074771,0.8281,2414.9,2414.8,4.25754276]
[1750457075868,0.82816,2414.8,2414.7,0.82814]
[1750457076073,0.82816,2414.8,2414.7,4.32691057]
[1750457077072,0.82816,2414.8,2414.7,0.06933781]
[1750457077468,4.03596,2414.8,2414.7,0.06933781]
[1750457077971,5.39636,2414.8,2414.7,0.06933781]
[1750457083467,5.39636,2414.8,2414.0,4.17751]
[1750457083468,17.64565966,2414.8,2413.8,3.42943276]
[1750457083674,0.82841,2414.1,2414.0,0.82837]
[1750457083874,4.03616,2414.2,2414.1,0.82837]
[1750457084369,0.82837,2414.1,2414.0,4.25781276]
[1750457084869,0.8285,2413.8,2413.7,0.82847]
[1750457086371,0.82851,2413.7,2413.6,7.46575276]
[1750457086773,0.8285,2413.8,2413.7,0.8285]
[1750457087475,0.82854,2413.7,2413.6,0.82853]
[1750457087676,0.82854,2413.7,2413.6,4.25796276]
[1750457089572,0.82854,2413.7,2413.6,3.42943276]
[1750457089973,0.82854,2413.7,2413.6,4.25797276]
[1750457090271,0.82854,2413.7,2413.6,3.49877057]
[1750457090473,0.82854,2413.7,2413.6,0.06933781]
[1750457090674,1.49634,2413.7,2413.6,0.06933781]
[1750457090876,2.90784,2413.7,2413.6,0.06933781]
[1750457093279,0.82865,2413.4,2413.3,0.82863]
[1750457093471,4.03645,2413.4,2413.3,4.25806276]
[1750457093671,0.82868,2413.2,2413.1,4.25811276]
[1750457094070,0.82868,2413.2,2413.1,0.82868]
[1750457094271,0.82868,2413.2,2413.1,4.25811276]
[1750457094872,3.8673,2413.4,2413.0,7.5475]
[1750457094873,0.82871,2413.1,2413.0,7.5475]
[1750457095368,4.03651,2413.1,2413.0,7.5475]
[1750457095576,4.03651,2413.1,2413.0,0.6425]
[1750457095773,4.03651,2413.1,2413.0,0.82875]
[1750457095971,0.6595,2413.4,2413.3,0.82865]
[1750457096980,4.0364,2413.5,2413.4,0.82861]
[1750457097679,0.82863,2413.4,2413.3,0.82862]
[1750457098477,4.0364,2413.5,2413.4,0.82861]
[1750457098871,0.82861,2413.4,2413.3,0.82862]
[1750457099075,0.82864,2413.4,2413.3,0.82864]
[1750457099880,0.82865,2413.3,2413.2,1.49596]
[1750457100083,0.82865,2413.3,2413.2,1.49595]
[1750457100282,0.82864,2413.4,2413.3,0.82863]
[1750457101275,3.2078,2413.5,2413.4,0.82861]
[1750457101476,4.03638,2413.5,2413.4,0.82861]
[1750457101987,0.82861,2413.4,2413.3,4.25805276]
[1750457102382,3.2078,2413.5,2413.4,0.82861]
[1750457102884,4.03638,2413.5,2413.4,0.82861]
[1750457103487,3.2078,2413.5,2413.4,0.82861]
[1750457103684,0.82872,2413.1,2413.0,0.6635]